bitfinex-derivatives/quotes_BTCF0:USTF0_20210409
["timestamp","ask_amount","ask_price","bid_price","bid_amount"]
[1617995735765,0.36612156,58352.0,58351.0,3.50244273]
[1617995736366,0.36612156,58352.0,58351.0,3.9498654]
[1617995743871,0.36562485,58353.0,58351.0,3.9498654]
[1617995744173,0.36562485,58353.0,58352.0,0.73214371]
[1617995744371,0.36562485,58353.0,58352.0,2.23214371]
[1617995744571,0.36562485,58353.0,58352.0,3.50214371]
[1617995752285,0.36562485,58353.0,58352.0,2.50214371]
[1617995757489,0.36562485,58353.0,58352.0,3.50214371]
[1617995758007,0.06262857,58355.0,58352.0,3.949568]
[1617995758008,0.36560987,58354.0,58352.0,3.949568]
[1617995758206,0.42827202,58355.0,58353.0,1.27147441]
[1617995758421,0.42827202,58355.0,58354.0,2.5]
[1617995758604,0.42827202,58355.0,58354.0,3.88852906]
[1617995759005,0.42827202,58355.0,58354.0,4.04147246]
[1617995759292,0.06262857,58355.0,58354.0,4.04147246]
[1617995759495,3.6415066,58356.0,58354.0,4.04147246]
[1617995759992,3.6415066,58356.0,58355.0,2.27147359]
[1617995760192,3.6415066,58356.0,58355.0,3.77147359]
[1617995760392,3.6415066,58356.0,58355.0,4.04147359]
[1617995761292,0.3657066,58356.0,58355.0,3.04147359]
[1617995761492,0.3657066,58356.0,58355.0,4.08087809]
[1617995761693,0.3657066,58356.0,58355.0,3.63346565]
[1617995762196,0.3405066,58356.0,58355.0,4.08088924]
[1617995763395,0.3405066,58356.0,58355.0,3.08088924]
[1617995763907,0.44722754,58365.0,58355.0,4.58930779]
[1617995764125,0.44747876,58373.0,58355.0,4.58930779]
[1617995764309,0.44747876,58373.0,58370.0,2.8739]
[1617995764598,0.44728659,58378.0,58372.0,0.75127321]
[1617995764800,0.44728659,58378.0,58373.0,1.5]
[1617995764998,0.89447156,58408.0,58373.0,1.5]
[1617995764999,0.50820605,58389.0,58377.0,0.3043132]
[1617995765305,0.50820605,58389.0,58388.0,2.9877]
[1617995765502,2.7392,58394.0,58388.0,4.93437045]
[1617995765796,2.7392,58394.0,58393.0,0.10725655]
[1617995766196,2.7392,58394.0,58393.0,0.37725655]
[1617995766397,0.50816277,58395.0,58393.0,0.37725655]
[1617995766600,0.50785222,58396.0,58393.0,0.37725655]
[1617995766800,0.50785222,58396.0,58394.0,3.3587]
[1617995767001,0.50785222,58396.0,58393.0,0.37725655]
[1617995767202,0.5075905,58397.0,58395.0,2.7651]
[1617995767406,0.50759062,58398.0,58395.0,2.4951]
[1617995767802,0.50759062,58398.0,58396.0,0.27]
[1617995768706,0.50737718,58397.0,58396.0,0.27]
[1617995772108,0.50695989,58398.0,58396.0,0.27]
[1617995772610,0.50695922,58397.0,58396.0,0.27]
[1617995773211,3.85065922,58397.0,58396.0,0.27]
[1617995773411,3.85065922,58397.0,58394.0,0.27]
[1617995773612,0.50690825,58395.0,58394.0,0.27]
[1617995773911,3.3442,58394.0,58393.0,0.10725655]
[1617995774212,3.94238601,58394.0,58393.0,0.10725655]
[1617995774511,3.94238601,58394.0,58393.0,0.37725655]
[1617995775616,3.94238601,58394.0,58393.0,3.11045655]
[1617995777216,0.59818601,58394.0,58393.0,3.11045655]
[1617995777619,0.50644774,58394.0,58393.0,3.11045655]
[1617995778016,0.50653381,58395.0,58393.0,0.37725655]
[1617995778316,0.50653381,58395.0,58394.0,3.688]
[1617995778817,0.50653381,58395.0,58394.0,3.958]
[1617995781321,0.50627769,58396.0,58394.0,3.958]
[1617995783924,0.50609447,58397.0,58394.0,3.958]
[1617995785830,0.10725655,58402.0,58394.0,3.958]
[1617995785831,0.50589762,58398.0,58394.0,3.958]
[1617995787533,0.50589762,58398.0,58394.0,0.27]
[1617995787933,0.50589762,58398.0,58397.0,2.8959]
[1617995788334,0.50589762,58398.0,58397.0,3.1659]
[1617995793548,0.50589762,58398.0,58397.0,0.27]
[1617995793949,2.98819762,58398.0,58397.0,0.27]
[1617995794149,2.98819762,58398.0,58394.0,0.27]
[1617995794449,3.07992484,58398.0,58394.0,0.27]
[1617995794756,2.4823,58398.0,58397.0,0.27]
[1617995794950,2.4823,58398.0,58394.0,0.27]
[1617995795250,3.03848083,58398.0,58397.0,0.27]
[1617995795574,3.03848083,58398.0,58394.0,0.27]
[1617995795797,3.98788083,58398.0,58397.0,0.27]
[1617995795977,3.98788083,58398.0,58393.0,0.10725655]
[1617995796181,0.2,58397.0,58394.0,0.27]
[1617995796362,0.2,58397.0,58393.0,0.10725655]
[1617995796550,1.50513731,58395.0,58393.0,0.10725655]
[1617995796749,1.50513731,58395.0,58394.0,0.27]
[1617995796951,0.29173644,58397.0,58394.0,0.27]
[1617995797151,0.50511273,58395.0,58394.0,0.27]
[1617995797350,1.50511273,58395.0,58394.0,0.27]
[1617995798049,1.61236928,58395.0,58394.0,0.27]
[1617995798349,1.10725655,58395.0,58394.0,0.27]
[1617995798550,1.30725655,58395.0,58394.0,0.27]
[1617995798750,1.10725655,58395.0,58394.0,0.27]
[1617995798951,1.61221533,58395.0,58394.0,0.27]
[1617995800954,1.10725655,58395.0,58394.0,0.27]
[1617995801155,1.61221841,58395.0,58394.0,0.27]
[1617995808062,0.61221841,58395.0,58394.0,0.27]
[1617995808364,1.61221841,58395.0,58394.0,0.27]
[1617995809464,0.61221841,58395.0,58394.0,0.27]
[1617995809664,1.81259655,58395.0,58394.0,0.27]
[1617995810464,1.81259655,58395.0,58376.0,0.30437231]
[1617995810665,3.2145,58377.0,58376.0,0.30437231]
[1617995810867,3.34864,58377.0,58375.0,0.30437338]
[1617995811266,0.13414,58377.0,58376.0,0.27]
[1617995811466,0.13414,58377.0,58374.0,0.57443483]
[1617995811765,0.13414,58377.0,58371.0,0.8259218]
[1617995811766,3.2149,58376.0,58372.0,0.31444166]
[1617995811965,4.2149,58376.0,58375.0,0.27]
[1617995812167,4.32215655,58376.0,58371.0,0.56785655]
[1617995812368,4.76639576,58376.0,58373.0,0.26]
[1617995812666,4.32215655,58376.0,58375.0,0.27]
[1617995812966,4.76634395,58376.0,58372.0,0.01]
[1617995813167,4.32215655,58376.0,58375.0,0.27]
[1617995813566,5.27103937,58376.0,58372.0,0.27]
[1617995813766,5.27103937,58376.0,58375.0,0.27]
[1617995814172,5.27103937,58376.0,58372.0,0.27]
[1617995814469,2.05613937,58376.0,58375.0,0.27]
[1617995814670,1.10725655,58376.0,58372.0,0.27]
[1617995816071,2.6962,58373.0,58372.0,0.27]
[1617995816571,2.78795456,58373.0,58372.0,0.27]
[1617995822374,3.29232912,58373.0,58372.0,0.27]
[1617995822573,4.49232912,58373.0,58372.0,0.27]
[1617995822873,4.49232912,58373.0,58369.0,0.27]
[1617995823073,4.49232912,58373.0,58372.0,0.26]
[1617995823275,1.0,58373.0,58372.0,0.26]
[1617995823476,1.70421246,58373.0,58370.0,0.26]
[1617995823709,1.70421246,58373.0,58367.0,0.01]
[1617995823876,5.16561246,58373.0,58372.0,0.01]
[1617995824076,5.16561246,58373.0,58371.0,0.27]
[1617995824277,4.6614,58373.0,58371.0,0.27]
[1617995824476,4.6614,58373.0,58365.0,0.27]
[1617995824678,0.59565771,58372.0,58361.0,0.26]
[1617995824877,0.2,58371.0,58361.0,0.26]
[1617995825077,0.50387471,58369.0,58366.0,0.27]
[1617995825278,1.0,58367.0,58361.0,0.27]
[1617995825478,1.0,58365.0,58361.0,0.27]
[1617995825778,0.2,58364.0,58359.0,0.41187691]
[1617995825980,0.2,58364.0,58362.0,0.27]
[1617995826277,0.2,58364.0,58359.0,0.41187691]
[1617995826278,0.10725655,58363.0,58360.0,0.27]
[1617995826479,0.30725655,58363.0,58360.0,0.57456798]
[1617995826678,0.30725655,58363.0,58360.0,0.30456798]
[1617995826878,0.30725655,58363.0,58361.0,0.27]
[1617995827480,0.30725655,58363.0,58360.0,0.27]
[1617995828984,0.10725655,58363.0,58360.0,0.27]
[1617995829386,0.2,58362.0,58360.0,0.27]
[1617995829686,3.6815,58361.0,58360.0,0.27]
[1617995829886,3.8815,58361.0,58360.0,0.27]
[1617995832588,3.6815,58361.0,58360.0,0.27]
[1617995837993,0.10725655,58363.0,58362.0,2.8722]
[1617995838494,0.10725655,58363.0,58362.0,3.1422]
[1617995838693,0.10725655,58363.0,58362.0,0.27]
[1617995838899,2.75735655,58363.0,58362.0,0.27]
[1617995839100,2.75735655,58363.0,58348.0,0.4856]
[1617995839101,3.95735655,58363.0,58360.0,0.27]
[1617995839294,3.95735655,58363.0,58356.0,0.01]
[1617995839495,4.45968033,58363.0,58362.0,0.27]
[1617995839696,4.45968033,58363.0,58355.0,0.27]
[1617995839996,0.59391711,58362.0,58357.0,0.01]
[1617995840295,0.79391711,58362.0,58356.0,0.27]
[1617995840499,0.10725655,58357.0,58356.0,0.27]
[1617995840795,1.10725655,58357.0,58349.0,0.01]
[1617995840994,0.10725655,58357.0,58356.0,0.26]
[1617995841196,1.0,58355.0,58348.0,0.4856]
[1617995841400,1.0,58355.0,58349.0,0.27]
[1617995841596,1.0,58355.0,58348.0,0.4856]
[1617995841897,1.10725655,58357.0,58349.0,0.27]
[1617995842598,0.10725655,58350.0,58349.0,0.27]
[1617995842798,0.25491655,58350.0,58349.0,0.27]
[1617995844699,3.46071655,58350.0,58349.0,2.8717]
[1617995853505,3.46071655,58350.0,58349.0,0.27]
[1617995854223,4.46071655,58350.0,58349.0,0.27]
[1617995855308,4.90183342,58350.0,58349.0,0.27]
[1617995856008,4.46071655,58350.0,58349.0,0.27]
[1617995859115,1.25491655,58350.0,58349.0,0.27]
[1617995859319,0.25491655,58350.0,58349.0,0.27]
[1617995859517,0.50137325,58357.0,58349.0,3.141]
[1617995859761,10.4357,58389.0,58349.0,3.141]
[1617995859762,0.501324,58359.0,58349.0,0.27]
[1617995860117,3.6261,58350.0,58349.0,0.27]
[1617995860759,3.73335655,58350.0,58349.0,0.27]
[1617995861720,3.86483655,58350.0,58349.0,0.27]
[1617995862921,4.86483655,58350.0,58349.0,0.27]
[1617995863820,3.86483655,58350.0,58349.0,0.27]
[1617995869231,0.23873655,58350.0,58349.0,0.27]
[1617995869635,0.23873655,58350.0,58349.0,3.5217]
[1617995869833,1.23873655,58350.0,58349.0,3.5217]
[1617995870634,0.23873655,58350.0,58349.0,3.5217]
[1617995870834,0.10725655,58350.0,58349.0,3.5217]
[1617995873037,0.10725655,58350.0,58349.0,0.27]
[1617995873236,1.10725655,58350.0,58349.0,0.27]
[1617995873636,3.73705655,58350.0,58349.0,0.27]
[1617995874037,3.82883892,58350.0,58349.0,0.27]
[1617995874238,2.82883892,58350.0,58349.0,0.27]
[1617995874844,3.82883892,58350.0,58349.0,0.27]
[1617995876141,3.26947863,58350.0,58349.0,0.27]
[1617995877142,4.26947863,58350.0,58349.0,0.27]
[1617995877345,3.26947863,58350.0,58349.0,0.27]
[1617995885749,4.26947863,58350.0,58349.0,0.27]
[1617995888455,3.26947863,58350.0,58349.0,0.27]
[1617995888754,0.63967863,58350.0,58349.0,0.27]
[1617995888955,0.63967863,58350.0,58349.0,3.8077]
[1617995889155,0.54789626,58350.0,58349.0,3.8077]
[1617995889354,0.64629353,58350.0,58349.0,3.8077]
[1617995890656,0.75240353,58350.0,58349.0,3.8077]
[1617995896563,1.25251453,58350.0,58349.0,3.8077]
[1617995897467,1.25251453,58350.0,58349.0,4.11312187]
[1617995900394,1.25251453,58350.0,58349.0,0.57542187]
[1617995900572,4.55011453,58350.0,58349.0,0.57542187]
[1617995900774,5.55011453,58350.0,58349.0,0.57542187]
[1617995901175,5.55011453,58350.0,58349.0,0.27]
[1617995901374,5.80299182,58350.0,58349.0,0.27]
[1617995901575,5.80299182,58350.0,58348.0,0.27]
[1617995901875,1.21336655,58350.0,58349.0,0.27]
[1617995902076,4.08286655,58350.0,58349.0,0.27]
[1617995902276,5.02283979,58350.0,58348.0,0.27]
[1617995902476,1.03731757,58349.0,58348.0,0.27]
[1617995902776,2.03731757,58349.0,58347.0,0.10725655]
[1617995902976,1.09731195,58349.0,58348.0,0.27]
[1617995903279,2.03705528,58349.0,58348.0,0.27]
[1617995903879,5.32615528,58349.0,58348.0,0.27]
[1617995904080,5.88544734,58349.0,58348.0,0.27]
[1617995904278,5.78813539,58349.0,58348.0,0.27]
[1617995904680,6.13782594,58349.0,58348.0,0.27]
[1617995904878,6.13782594,58349.0,58335.0,0.30565739]
[1617995905179,0.93824165,58336.0,58335.0,0.30565739]
[1617995905380,3.59939165,58336.0,58335.0,0.30565739]
[1617995905582,3.59939165,58336.0,58335.0,0.27]
[1617995905583,4.59939165,58336.0,58335.0,0.27]
[1617995905883,4.69684269,58336.0,58335.0,0.27]
[1617995906081,4.69684269,58336.0,58334.0,0.27]
[1617995906282,1.0,58335.0,58333.0,0.245]
[1617995906482,2.03362461,58335.0,58333.0,0.245]
[1617995906681,1.0973695,58335.0,58334.0,0.27]
[1617995906881,1.20462605,58335.0,58334.0,0.27]
[1617995907083,2.14061104,58335.0,58334.0,0.27]
[1617995907983,2.04324154,58335.0,58334.0,0.27]
[1617995908183,4.91434154,58335.0,58334.0,0.27]
[1617995908583,5.26360319,58335.0,58334.0,0.27]
[1617995909385,5.01161751,58335.0,58334.0,0.27]
[1617995910904,5.56781414,58335.0,58334.0,0.27]
[1617995911488,5.81940885,58335.0,58334.0,0.27]
[1617995912290,5.26321222,58335.0,58334.0,0.27]
[1617995912789,5.26321222,58335.0,58333.0,0.245]
[1617995912988,1.03018995,58334.0,58333.0,0.245]
[1617995913493,0.93310642,58334.0,58333.0,0.245]
[1617995914190,1.93310642,58334.0,58333.0,0.245]
[1617995916794,1.49632687,58334.0,58333.0,0.245]
[1617995916996,1.0,58334.0,58333.0,0.245]
[1617995917196,1.93271331,58334.0,58333.0,0.245]
[1617995917997,1.0,58334.0,58333.0,0.245]
[1617995918298,2.02977224,58334.0,58333.0,0.245]
[1617995918499,1.93238863,58334.0,58333.0,0.245]
[1617995921799,1.59290081,58334.0,58333.0,0.245]
[1617995922099,4.50822752,58334.0,58333.0,0.245]
[1617995922400,4.60550569,58334.0,58333.0,0.245]
[1617995924701,4.60550569,58334.0,58333.0,0.21]
[1617995925501,4.60550569,58334.0,58333.0,0.20897965]
[1617995925901,4.60550569,58334.0,58333.0,0.24397965]
[1617995926101,3.5765,58334.0,58333.0,0.24397965]
[1617995926301,4.50734009,58334.0,58333.0,0.105]
[1617995926502,4.50734009,58334.0,58333.0,0.0933]
[1617995926704,4.50734009,58334.0,58333.0,0.23227965]
[1617995926902,4.50734009,58334.0,58333.0,0.17397965]
[1617995927503,4.50734009,58334.0,58333.0,0.17227965]
[1617995928002,4.50734009,58334.0,58333.0,0.23057965]
[1617995930607,3.50734009,58334.0,58333.0,0.23057965]
[1617995930807,4.50734009,58334.0,58333.0,0.23057965]
[1617995941226,4.50734009,58334.0,58333.0,0.2295593]
[1617995945328,3.50734009,58334.0,58333.0,0.2295593]
[1617995945628,4.50734009,58334.0,58333.0,0.2295593]
[1617995950839,5.0612762,58334.0,58333.0,0.2295593]
[1617995951438,4.0612762,58334.0,58333.0,0.2295593]
[1617995951639,5.0612762,58334.0,58333.0,0.2295593]
[1617995952039,5.0612762,58334.0,58333.0,0.2285389]
[1617995953840,4.0612762,58334.0,58333.0,0.2285389]
[1617995954040,5.0612762,58334.0,58333.0,0.2285389]
[1617995956144,5.1132762,58334.0,58333.0,0.2285389]
[1617995956484,5.59259778,58334.0,58333.0,0.2285389]
[1617995956885,6.28500345,58334.0,58333.0,0.2285389]
[1617995958141,6.08500345,58334.0,58333.0,0.2285389]
[1617995958743,5.80568187,58334.0,58333.0,0.2285389]
[1617995962042,5.80568187,58334.0,58333.0,0.22751834]
[1617995962446,6.67716901,58334.0,58333.0,0.22751834]
[1617995964849,6.87716901,58334.0,58333.0,0.22751834]
[1617995968353,5.39239281,58334.0,58333.0,0.18831834]
[1617995968852,6.88003069,58334.0,58333.0,0.18831834]
[1617995971257,6.88003069,58334.0,58333.0,0.16971834]
[1617995972759,6.88003069,58334.0,58333.0,0.16869775]
[1617995973658,6.88003069,58334.0,58333.0,0.14439775]
[1617995974160,5.68003069,58334.0,58333.0,0.14439775]
[1617995974361,6.62803069,58334.0,58333.0,0.14439775]
[1617995975963,5.62803069,58334.0,58333.0,0.14439775]
[1617995976163,6.62803069,58334.0,58333.0,0.14439775]
[1617995977263,5.75654355,58334.0,58333.0,0.14439775]
[1617995977465,6.62981942,58334.0,58333.0,0.11899775]
[1617995978264,5.14218154,58334.0,58333.0,0.11899775]
[1617995978665,6.63095163,58334.0,58333.0,0.05009775]
[1617995979466,6.63095163,58334.0,58306.0,0.4777]
[1617995979969,0.93198029,58307.0,58306.0,0.4777]
[1617995980166,1.05801029,58307.0,58306.0,0.4777]
[1617995980368,1.05801029,58307.0,58306.0,0.7477]
[1617995980867,4.14901029,58307.0,58306.0,0.7477]
[1617995981270,4.25626684,58307.0,58306.0,0.7477]
[1617995981572,4.38558489,58307.0,58306.0,0.7477]
[1617995995786,1.29458489,58307.0,58306.0,0.7477]
[1617995996085,1.16526684,58307.0,58306.0,0.7477]
[1617995997388,3.90316684,58307.0,58306.0,0.7477]
[1617995997987,4.03369151,58307.0,58306.0,0.7477]
[1617996000390,2.97118655,58307.0,58306.0,0.7477]
[1617996000797,3.8987306,58307.0,58306.0,0.7477]
[1617996001389,4.8987306,58307.0,58306.0,0.7477]
[1617996002591,3.8987306,58307.0,58306.0,0.7477]
[1617996003091,2.97118655,58307.0,58306.0,0.7477]
[1617996003294,3.95041519,58307.0,58306.0,0.7477]
[1617996003898,3.89851519,58307.0,58306.0,0.7477]
[1617996017318,4.89851519,58307.0,58306.0,0.7477]
[1617996026222,5.45152877,58307.0,58306.0,0.7477]
[1617996026420,4.89851519,58307.0,58306.0,0.7477]
[1617996026921,5.45165646,58307.0,58306.0,0.7477]
[1617996027120,4.89851519,58307.0,58306.0,0.7477]
[1617996027321,5.45167058,58307.0,58306.0,0.7477]
[1617996027722,4.89851519,58307.0,58306.0,0.7477]
[1617996028122,5.45164409,58307.0,58306.0,0.7477]
[1617996028726,4.89851519,58307.0,58306.0,0.7477]
[1617996029323,5.45114486,58307.0,58306.0,0.7477]
[1617996029525,5.45114486,58307.0,58306.0,0.74667937]
[1617996029926,5.45114486,58307.0,58293.0,0.30581008]
[1617996030328,1.92672045,58294.0,58287.0,0.3058078]
[1617996030532,0.92618299,58288.0,58287.0,0.3058078]
[1617996030729,0.92618299,58288.0,58286.0,0.01]
[1617996031130,0.92618299,58288.0,58287.0,0.27]
[1617996031333,1.0,58291.0,58285.0,0.01]
[1617996031530,0.10725655,58286.0,58285.0,0.10725655]
[1617996031830,1.03303798,58286.0,58285.0,0.10725655]
[1617996032031,1.03303798,58286.0,58285.0,0.11725655]
[1617996032232,0.54060733,58286.0,58285.0,0.11725655]
[1617996033133,0.54060733,58286.0,58285.0,3.05445655]
[1617996033733,0.43335078,58286.0,58285.0,4.55445655]
[1617996033956,0.54675537,58286.0,58285.0,4.86002684]
[1617996034435,0.43370975,58289.0,58285.0,5.22666716]
[1617996034634,0.43370975,58289.0,58285.0,6.34216716]
[1617996034966,0.43377035,58290.0,58288.0,1.30553032]
[1617996035134,0.43377035,58290.0,58289.0,1.5]
[1617996035335,0.43377035,58290.0,58289.0,2.77]
[1617996035547,0.43410384,58294.0,58289.0,2.77]
[1617996035837,0.43410384,58294.0,58291.0,1.0]
[1617996036038,0.4343959,58298.0,58293.0,0.67210383]
[1617996036236,0.4343959,58298.0,58294.0,1.5]
[1617996036463,0.4343959,58298.0,58295.0,1.0]
[1617996036697,0.4343959,58298.0,58294.0,1.51]
[1617996036698,0.4343959,58298.0,58297.0,1.0]
[1617996036871,0.43447437,58299.0,58297.0,6.13406118]
[1617996037138,0.43447437,58299.0,58297.0,6.39406118]
[1617996037341,0.43465726,58301.0,58298.0,0.73334841]
[1617996037538,0.43465726,58301.0,58299.0,1.5]
[1617996037738,0.43465726,58301.0,58299.0,1.77]
[1617996037940,0.43476316,58303.0,58300.0,0.67210559]
[1617996038239,0.43476316,58303.0,58301.0,1.5]
[1617996038440,0.43476316,58303.0,58302.0,1.0]
[1617996038639,0.43486967,58304.0,58301.0,0.27]
[1617996038950,2.4877,58302.0,58300.0,0.73332991]
[1617996039139,2.4877,58302.0,58298.0,0.10725655]
[1617996039339,2.4877,58302.0,58301.0,0.27]
[1617996039540,2.922388,58302.0,58301.0,0.57548503]
[1617996039838,2.922388,58302.0,58301.0,0.30548503]
[1617996040040,2.922388,58302.0,58301.0,0.57548503]
[1617996040740,2.922388,58302.0,58301.0,0.27]
[1617996041240,2.922388,58302.0,58300.0,0.30549364]
[1617996041449,0.434688,58302.0,58301.0,0.27]
[1617996041878,0.49334376,58303.0,58279.0,1.0]
[1617996041879,1.0,58303.0,58299.0,0.27]
[1617996042247,2.47795791,58302.0,58301.0,0.27]
[1617996042443,4.52525791,58302.0,58296.0,0.01]
[1617996042641,4.52525791,58302.0,58294.0,0.26]
[1617996042843,0.92628752,58297.0,58291.0,0.01]
[1617996043143,0.43354296,58292.0,58287.0,0.30555297]
[1617996043342,3.1052,58289.0,58284.0,0.30551997]
[1617996043542,0.10725655,58288.0,58284.0,0.30551997]
[1617996043765,0.10725655,58288.0,58282.0,0.10725655]
[1617996043766,0.43308672,58285.0,58282.0,0.10725655]
[1617996044143,0.49181787,58286.0,58283.0,0.27]
[1617996044742,0.43277304,58284.0,58283.0,0.27]
[1617996045343,3.51237304,58284.0,58283.0,0.27]
[1617996045745,3.62618061,58284.0,58283.0,0.27]
[1617996045945,4.62618061,58284.0,58283.0,0.27]
[1617996046245,4.19340757,58284.0,58283.0,0.27]
[1617996046945,1.54632226,58284.0,58283.0,0.27]
[1617996047547,1.43251469,58284.0,58283.0,0.27]
[1617996048148,0.43251469,58284.0,58283.0,0.27]
[1617996049547,1.43251469,58284.0,58283.0,0.27]
[1617996049748,4.95201469,58284.0,58283.0,0.27]
[1617996049949,4.95201469,58284.0,58282.0,0.10725655]
[1617996049950,5.55635939,58284.0,58282.0,0.10725655]
[1617996050148,1.03629095,58283.0,58277.0,0.4594]
[1617996050449,0.43186123,58278.0,58277.0,0.4594]
[1617996050755,0.43186123,58278.0,58277.0,0.7294]
[1617996050756,1.43186123,58278.0,58277.0,0.7294]
[1617996051048,4.27836123,58278.0,58277.0,0.7294]
[1617996051288,3.27836123,58278.0,58277.0,0.7294]
[1617996051450,3.49929577,58278.0,58277.0,0.7294]
[1617996051950,4.49929577,58278.0,58277.0,0.7294]
[1617996052150,3.49929577,58278.0,58277.0,0.7294]
[1617996052550,4.49929577,58278.0,58277.0,0.7294]
[1617996054051,4.38561778,58278.0,58277.0,0.7294]
[1617996056156,4.38561778,58278.0,58268.0,0.30480345]
[1617996056356,1.53911778,58278.0,58268.0,0.30480345]
[1617996056558,2.6201,58269.0,58265.0,0.30479876]
[1617996056762,2.76619,58269.0,58265.0,0.30479876]
[1617996057258,2.76619,58269.0,58266.0,0.27]
[1617996057558,0.10725655,58267.0,58266.0,0.27]
[1617996057758,0.10725655,58267.0,58263.0,0.27]
[1617996058058,0.10725655,58267.0,58260.0,0.035]
[1617996058357,1.0,58264.0,58260.0,0.035]
[1617996058559,0.10725655,58267.0,58260.0,0.035]
[1617996058758,0.10725655,58267.0,58261.0,0.27]
[1617996059260,1.0,58262.0,58261.0,0.27]
[1617996061572,0.10725655,58267.0,58261.0,0.27]
[1617996061801,0.10725655,58267.0,58260.0,0.035]
[1617996061994,1.0,58262.0,58260.0,0.035]
[1617996062360,0.4298842,58265.0,58260.0,0.035]
[1617996062562,0.10725655,58267.0,58260.0,0.035]
[1617996062563,0.4297329,58263.0,58260.0,0.035]
[1617996062761,1.0,58261.0,58260.0,0.035]
[1617996062967,1.42938257,58261.0,58260.0,0.035]
[1617996063563,6.53663912,58261.0,58260.0,0.035]
[1617996064276,6.64933451,58261.0,58260.0,0.035]
[1617996066466,1.64933451,58261.0,58260.0,0.035]
[1617996066766,1.53663912,58261.0,58260.0,0.0179]
[1617996066970,6.53663912,58261.0,58260.0,0.0179]
[1617996067168,1.53663912,58261.0,58260.0,0.0179]
[1617996067368,1.64912807,58261.0,58260.0,0.0179]
[1617996067567,6.64912807,58261.0,58260.0,0.0179]
[1617996067868,6.64907665,58261.0,58260.0,0.01687871]
[1617996068070,7.13493644,58261.0,58260.0,0.01687871]
[1617996068266,2.13493644,58261.0,58260.0,0.01687871]
[1617996068468,0.64907665,58261.0,58260.0,0.01687871]
[1617996068666,1.64907665,58261.0,58260.0,0.01687871]
[1617996069069,2.13484853,58261.0,58238.0,0.4601]
[1617996069368,0.42703921,58253.0,58238.0,0.4601]
[1617996069570,0.10725655,58236.0,58235.0,0.10725655]
[1617996069767,3.17205655,58236.0,58235.0,0.10725655]
[1617996070277,4.17205655,58236.0,58235.0,0.10725655]
[1617996070968,0.21085655,58236.0,58235.0,0.10725655]
[1617996071203,1.10725655,58236.0,58235.0,3.81045655]
[1617996071420,0.10725655,58236.0,58235.0,3.81045655]
[1617996071590,0.10725655,58236.0,58235.0,4.08045655]
[1617996071788,0.10725655,58236.0,58235.0,5.58045655]
[1617996072777,0.10725655,58236.0,58235.0,4.08045655]
[1617996073172,1.10725655,58236.0,58235.0,4.08045655]
[1617996073406,0.10725655,58236.0,58235.0,4.08045655]
[1617996073614,0.10725655,58236.0,58235.0,5.58045655]
[1617996073805,0.10725655,58236.0,58235.0,4.08045655]
[1617996076073,0.10725655,58236.0,58235.0,4.20858655]
[1617996077778,0.10725655,58236.0,58235.0,5.70858655]
[1617996079380,0.10725655,58236.0,58235.0,4.20858655]
[1617996080486,0.10725655,58236.0,58235.0,0.50538655]
[1617996080727,4.01692655,58236.0,58235.0,0.27]
[1617996080924,4.01692655,58236.0,58225.0,0.30290184]
[1617996081083,4.01692655,58236.0,58220.0,0.80051807]
[1617996081384,1.0,58222.0,58220.0,0.4976]
[1617996081583,1.13653,58222.0,58220.0,0.4976]
[1617996081883,0.10725655,58221.0,58220.0,0.4976]
[1617996082282,0.10725655,58221.0,58220.0,0.7676]
[1617996082486,2.65135655,58221.0,58220.0,2.2676]
[1617996082903,2.5441,58221.0,58220.0,2.2676]
[1617996083787,1.10725655,58235.0,58220.0,2.2676]
[1617996083987,0.10725655,58235.0,58220.0,5.4502]
[1617996084509,0.10725655,58235.0,58220.0,2.2676]
[1617996084687,0.10725655,58235.0,58233.0,2.5734]
[1617996084891,0.10725655,58235.0,58233.0,4.0734]
[1617996085086,0.10725655,58235.0,58234.0,0.27]
[1617996085487,3.59795655,58235.0,58234.0,0.27]
[1617996085691,3.59795655,58235.0,58234.0,0.10725655]
[1617996086289,3.59795655,58235.0,58234.0,0.37725655]
[1617996086488,3.59795655,58235.0,58234.0,0.27]
[1617996086789,1.10725655,58235.0,58220.0,0.4976]
[1617996087088,1.23989655,58235.0,58220.0,0.4976]
[1617996087489,1.0,58222.0,58221.0,0.27]
[1617996087689,3.39156,58222.0,58221.0,0.37725655]
[1617996088589,4.39156,58222.0,58221.0,0.37725655]
[1617996088888,3.39156,58222.0,58221.0,0.37725655]
[1617996093593,4.39156,58222.0,58221.0,0.37725655]
[1617996094395,3.39156,58222.0,58221.0,0.37725655]
[1617996094595,4.39156,58222.0,58221.0,0.37725655]
[1617996096799,4.39156,58222.0,58221.0,0.10725655]
[1617996098000,4.39156,58222.0,58220.0,0.4976]
[1617996098602,1.09536,58222.0,58220.0,0.4976]
[1617996099000,1.0,58221.0,58220.0,0.4976]
[1617996099322,0.10725655,58223.0,58221.0,3.144]
[1617996099510,0.10725655,58223.0,58221.0,2.77638]
[1617996099713,0.10725655,58223.0,58222.0,1.27]
[1617996099908,0.10725655,58223.0,58222.0,1.37725655]
[1617996100402,0.10725655,58223.0,58222.0,0.37725655]
[1617996101300,0.10725655,58223.0,58222.0,1.37725655]
[1617996101801,0.10725655,58223.0,58222.0,0.37725655]
[1617996103230,2.69375655,58223.0,58218.0,0.07]
[1617996103501,1.21654655,58223.0,58218.0,0.07]
[1617996103702,0.21654655,58223.0,58222.0,3.3504]
[1617996103906,0.21654655,58223.0,58222.0,3.57400655]
[1617996104102,0.426257,58238.0,58222.0,4.84400655]
[1617996104424,0.42663536,58241.0,58227.0,1.0]
[1617996104817,0.42682066,58244.0,58228.0,0.27]
[1617996105105,0.42687063,58245.0,58228.0,0.27]
[1617996105303,0.42687063,58245.0,58225.0,0.01]
[1617996105504,0.42682269,58244.0,58222.0,3.57400655]
[1617996105704,0.42682269,58244.0,58229.0,0.26]
[1617996105905,0.42695873,58243.0,58235.0,0.10725655]